[Event "Titled Tuesday Blitz September 28 2021"]
[White "Rosen, Eric"]
[Black "Romanchuk, Viktor"]
[WhiteFideId "2032562"]
[BlackFideId "14109271"]
[WhiteElo "2362"]
[BlackElo "2242"]
[Result "0-1"]
[Round "08"]
[TimeControl "180+1"]
[Date "2021.09.28"]
[WhiteClock "0:00:09"]
[BlackClock "0:00:06"]

1. d4 {[%clk 0:03:00]}  d5 {[%clk 0:02:59]} 2. Bf4 {[%clk 0:03:00]}  Nf6 {[%clk 0:02:58]} 3. e3 {[%clk 0:03:01]}  c5 {[%clk 0:02:59]} 4. Nf3 {[%clk 0:03:01]}  Nc6 {[%clk 0:02:58]} 5. Nbd2 {[%clk 0:03:01]}  cxd4 {[%clk 0:02:52]} 6. exd4 {[%clk 0:03:00]}  Bg4 {[%clk 0:02:52]} 7. h3 {[%clk 0:02:50]}  Bh5 {[%clk 0:02:49]} 8. Bb5 {[%clk 0:02:50]}  a6 {[%clk 0:02:36]} 9. Bxc6+ {[%clk 0:02:41]}  bxc6 {[%clk 0:02:37]} 10. g4 {[%clk 0:02:42]}  Bg6 {[%clk 0:02:36]} 11. Ne5 {[%clk 0:02:42]}  Qb6 {[%clk 0:02:35]} 12. Nb3 {[%clk 0:02:31]}  Ne4 {[%clk 0:02:12]} 13. h4 {[%clk 0:01:57]}  f6 {[%clk 0:02:10]} 14. Nxg6 {[%clk 0:01:55]}  hxg6 {[%clk 0:02:11]} 15. f3 {[%clk 0:01:54]}  Nd6 {[%clk 0:01:55]} 16. Qe2 {[%clk 0:01:54]}  Nc4 {[%clk 0:01:42]} 17. c3 {[%clk 0:01:40]}  g5 {[%clk 0:01:39]} 18. Bg3 {[%clk 0:01:33]}  gxh4 {[%clk 0:01:38]} 19. Rxh4 {[%clk 0:01:32]}  Rxh4 {[%clk 0:01:37]} 20. Bxh4 {[%clk 0:01:33]}  a5 {[%clk 0:01:30]} 21. Nc5 {[%clk 0:00:49]}  Qxb2 {[%clk 0:00:41]} 22. Qxb2 {[%clk 0:00:49]}  Nxb2 {[%clk 0:00:42]} 23. Rb1 {[%clk 0:00:50]}  Nc4 {[%clk 0:00:42]} 24. Rb7 {[%clk 0:00:45]}  Nd6 {[%clk 0:00:37]} 25. Rb6 {[%clk 0:00:37]}  Rc8 {[%clk 0:00:34]} 26. Bg3 {[%clk 0:00:25]}  Nc4 {[%clk 0:00:33]} 27. Rb7 {[%clk 0:00:24]}  e5 {[%clk 0:00:19]} 28. Ne6 {[%clk 0:00:17]}  Nd6 {[%clk 0:00:17]} 29. Nxg7+ {[%clk 0:00:17]}  Bxg7 {[%clk 0:00:14]} 30. Rxg7 {[%clk 0:00:18]}  Kf8 {[%clk 0:00:14]} 31. Rh7 {[%clk 0:00:14]}  Kg8 {[%clk 0:00:14]} 32. Ra7 {[%clk 0:00:06]}  Nb5 {[%clk 0:00:13]} 33. Rxa5 {[%clk 0:00:06]}  exd4 {[%clk 0:00:11]} 34. cxd4 {[%clk 0:00:04]}  Nxd4 {[%clk 0:00:12]} 35. Kf2 {[%clk 0:00:03]}  c5 {[%clk 0:00:12]} 36. Bf4 {[%clk 0:00:03]}  Ne6 {[%clk 0:00:11]} 37. Bd2 {[%clk 0:00:03]}  d4 {[%clk 0:00:11]} 38. Ra6 {[%clk 0:00:03]}  Kf7 {[%clk 0:00:11]} 39. f4 {[%clk 0:00:04]}  c4 {[%clk 0:00:11]} 40. f5 {[%clk 0:00:03]}  Nc5 {[%clk 0:00:08]} 41. Ra7+ {[%clk 0:00:04]}  Kg8 {[%clk 0:00:08]} 42. Bb4 {[%clk 0:00:03]}  Nd3+ {[%clk 0:00:08]} 43. Kg3 {[%clk 0:00:03]}  Nxb4 {[%clk 0:00:09]} 44. Kh4 {[%clk 0:00:03]}  Nc6 {[%clk 0:00:08]} 45. Rd7 {[%clk 0:00:02]}  Nd8 {[%clk 0:00:07]} 46. Kh5 {[%clk 0:00:02]}  Nf7 {[%clk 0:00:06]} 47. g5 {[%clk 0:00:01]}  fxg5 {[%clk 0:00:05]} 48. f6 {[%clk 0:00:01]}  c3 {[%clk 0:00:03]} 49. Ra7 {[%clk 0:00:01]}  c2 {[%clk 0:00:03]} 50. Kg6 {[%clk 0:00:02]}  Ne5+ {[%clk 0:00:02]} 51. Kh6 {[%clk 0:00:01]}  c1=Q {[%clk 0:00:03]} 52. Rg7+ {[%clk 0:00:01]}  Kf8 {[%clk 0:00:03]} 53. a4 {[%clk 0:00:02]}  Nf7+ {[%clk 0:00:03]} 54. Kg6 {[%clk 0:00:02]}  Qc2+ {[%clk 0:00:03]} 55. Kh5 {[%clk 0:00:03]}  Qh2+ {[%clk 0:00:02]} 56. Kg4 {[%clk 0:00:03]}  Qg2+ {[%clk 0:00:02]} 57. Kf5 {[%clk 0:00:03]}  Qf3+ {[%clk 0:00:02]} 58. Kg6 {[%clk 0:00:04]}  Qe4+ {[%clk 0:00:01]} 59. Kh5 {[%clk 0:00:04]}  g4 {[%clk 0:00:01]} 60. a5 {[%clk 0:00:04]}  Qf5+ {[%clk 0:00:01]} 61. Kh4 {[%clk 0:00:04]}  Qxf6+ {[%clk 0:00:01]} 62. Rg5 {[%clk 0:00:04]}  Qxg5+ {[%clk 0:00:01]} 63. Kg3 {[%clk 0:00:04]}  Qxa5 {[%clk 0:00:02]} 64. Kf4 {[%clk 0:00:05]}  d3 {[%clk 0:00:03]} 65. Ke4 {[%clk 0:00:05]}  d2 {[%clk 0:00:04]} 66. Kf4 {[%clk 0:00:06]}  d1=Q {[%clk 0:00:05]} 67. Kg3 {[%clk 0:00:07]}  Qd3+ {[%clk 0:00:05]} 68. Kg2 {[%clk 0:00:08]}  Qf3+ {[%clk 0:00:05]} 69. Kh2 {[%clk 0:00:08]}  Qd2+ {[%clk 0:00:05]} 70. Kg1 {[%clk 0:00:09]}  Qfd1# {[%clk 0:00:06]} 0-1


[Site "https://www.chess.com"]

[Event "Titled Tuesday Blitz September 28 2021"]
[White "Rozhkov, Viacheslav"]
[Black "Baskin, Robert"]
[WhiteFideId "4181484"]
[BlackFideId "24662402"]
[WhiteElo "2324"]
[BlackElo "2521"]
[Result "1-0"]
[Round "08"]
[TimeControl "180+1"]
[Date "2021.09.28"]
[WhiteClock "0:02:06"]
[BlackClock "0:01:49"]

1. e4 {[%clk 0:03:00]}  c5 {[%clk 0:02:58]} 2. Nf3 {[%clk 0:03:00]}  d6 {[%clk 0:02:59]} 3. d4 {[%clk 0:03:00]}  cxd4 {[%clk 0:03:00]} 4. Nxd4 {[%clk 0:03:01]}  Nf6 {[%clk 0:03:01]} 5. Nc3 {[%clk 0:03:01]}  a6 {[%clk 0:03:01]} 6. Be3 {[%clk 0:03:00]}  e5 {[%clk 0:03:00]} 7. Nb3 {[%clk 0:03:00]}  Be6 {[%clk 0:03:01]} 8. f3 {[%clk 0:03:00]}  Be7 {[%clk 0:03:01]} 9. Qd2 {[%clk 0:03:00]}  O-O {[%clk 0:03:01]} 10. O-O-O {[%clk 0:03:00]}  Nbd7 {[%clk 0:03:02]} 11. g4 {[%clk 0:03:00]}  b5 {[%clk 0:03:02]} 12. g5 {[%clk 0:03:00]}  Nh5 {[%clk 0:03:03]} 13. Nd5 {[%clk 0:03:00]}  Bxd5 {[%clk 0:02:58]} 14. exd5 {[%clk 0:03:00]}  Rc8 {[%clk 0:02:45]} 15. Na5 {[%clk 0:02:40]}  Qc7 {[%clk 0:02:18]} 16. Nc6 {[%clk 0:02:38]}  Bd8 {[%clk 0:02:18]} 17. Bh3 {[%clk 0:02:30]}  g6 {[%clk 0:02:12]} 18. Bg4 {[%clk 0:02:26]}  Ng7 {[%clk 0:02:11]} 19. h4 {[%clk 0:02:25]}  f5 {[%clk 0:01:57]} 20. gxf6 {[%clk 0:02:24]}  Nxf6 {[%clk 0:01:57]} 21. Bxc8 {[%clk 0:02:22]}  Qxc8 {[%clk 0:01:58]} 22. Bg5 {[%clk 0:02:12]}  Nfh5 {[%clk 0:01:51]} 23. Bxd8 {[%clk 0:02:09]}  Kh8 {[%clk 0:01:49]} 24. Be7 {[%clk 0:02:06]}  Rxf3 {[%clk 0:01:49]} 25. Bxd6 {[%clk 0:02:06]} 1-0


[Site "https://www.chess.com"]

[Event "Titled Tuesday Blitz September 28 2021"]
[White "Rozman, Levy"]
[Black "Di Nicolantonio, Lucas"]
[WhiteFideId "2039877"]
[BlackFideId "680460"]
[WhiteElo "2376"]
[BlackElo "2381"]
[Result "0-1"]
[Round "08"]
[TimeControl "180+1"]
[Date "2021.09.28"]
[WhiteClock "0:01:02"]
[BlackClock "0:01:36"]

1. d4 {[%clk 0:03:00]}  g6 {[%clk 0:02:59]} 2. e4 {[%clk 0:02:59]}  Bg7 {[%clk 0:02:59]} 3. Nc3 {[%clk 0:02:58]}  d6 {[%clk 0:03:00]} 4. f4 {[%clk 0:02:50]}  a6 {[%clk 0:03:00]} 5. Nf3 {[%clk 0:02:48]}  b5 {[%clk 0:03:00]} 6. Bd3 {[%clk 0:02:48]}  Nd7 {[%clk 0:03:00]} 7. e5 {[%clk 0:02:47]}  c5 {[%clk 0:03:01]} 8. Be4 {[%clk 0:02:42]}  Rb8 {[%clk 0:03:01]} 9. O-O {[%clk 0:02:27]}  Nh6 {[%clk 0:02:52]} 10. dxc5 {[%clk 0:02:18]}  Nxc5 {[%clk 0:02:51]} 11. exd6 {[%clk 0:01:59]}  Nxe4 {[%clk 0:02:07]} 12. Nxe4 {[%clk 0:01:55]}  O-O {[%clk 0:02:07]} 13. Ne5 {[%clk 0:01:48]}  Nf5 {[%clk 0:01:53]} 14. dxe7 {[%clk 0:01:40]}  Qxe7 {[%clk 0:01:53]} 15. Kh1 {[%clk 0:01:32]}  Bb7 {[%clk 0:01:44]} 16. Qe1 {[%clk 0:01:02]}  f6 {[%clk 0:01:36]} 0-1


[Site "https://www.chess.com"]

[Event "Titled Tuesday Blitz September 28 2021"]
[White "Samadov, Read"]
[Black "Sevian, Samuel"]
[WhiteFideId "13417444"]
[BlackFideId "2040506"]
[WhiteElo "2084"]
[BlackElo "2907"]
[Result "1-0"]
[Round "08"]
[TimeControl "180+1"]
[Date "2021.09.28"]
[WhiteClock "0:01:13"]
[BlackClock "0:01:52"]

1. d4 {[%clk 0:03:00]}  b6 {[%clk 0:02:58]} 2. c4 {[%clk 0:03:01]}  Bb7 {[%clk 0:02:59]} 3. Nc3 {[%clk 0:03:01]}  Nf6 {[%clk 0:02:59]} 4. e3 {[%clk 0:02:58]}  e6 {[%clk 0:02:59]} 5. Nf3 {[%clk 0:02:57]}  d5 {[%clk 0:02:59]} 6. cxd5 {[%clk 0:02:55]}  exd5 {[%clk 0:03:00]} 7. Bd3 {[%clk 0:02:55]}  Bd6 {[%clk 0:03:00]} 8. O-O {[%clk 0:02:55]}  O-O {[%clk 0:03:01]} 9. b3 {[%clk 0:02:55]}  Re8 {[%clk 0:03:01]} 10. Bb2 {[%clk 0:02:55]}  c5 {[%clk 0:03:02]} 11. Rc1 {[%clk 0:02:55]}  a6 {[%clk 0:03:01]} 12. Ne2 {[%clk 0:02:54]}  Nbd7 {[%clk 0:03:01]} 13. Bb1 {[%clk 0:02:48]}  Rc8 {[%clk 0:03:01]} 14. dxc5 {[%clk 0:02:47]}  bxc5 {[%clk 0:03:01]} 15. Ng3 {[%clk 0:02:47]}  Bb8 {[%clk 0:03:01]} 16. Re1 {[%clk 0:02:44]}  Nf8 {[%clk 0:02:59]} 17. Qd3 {[%clk 0:02:34]}  Ng6 {[%clk 0:02:58]} 18. Ba3 {[%clk 0:02:29]}  Qa5 {[%clk 0:02:56]} 19. Bb2 {[%clk 0:02:29]}  Qd8 {[%clk 0:02:54]} 20. Rcd1 {[%clk 0:02:11]}  Qb6 {[%clk 0:02:30]} 21. Qf5 {[%clk 0:02:03]}  Rc6 {[%clk 0:02:22]} 22. Ng5 {[%clk 0:01:57]}  Bc8 {[%clk 0:02:20]} 23. Qc2 {[%clk 0:01:50]}  Qd8 {[%clk 0:02:14]} 24. b4 {[%clk 0:01:42]}  Ng4 {[%clk 0:02:09]} 25. Nf3 {[%clk 0:01:35]}  Nh4 {[%clk 0:02:09]} 26. Qxh7+ {[%clk 0:01:34]}  Kf8 {[%clk 0:02:06]} 27. Qh8+ {[%clk 0:01:32]}  Ke7 {[%clk 0:02:06]} 28. Qxh4+ {[%clk 0:01:32]}  Nf6 {[%clk 0:02:06]} 29. e4 {[%clk 0:01:25]}  Bxg3 {[%clk 0:01:52]} 30. exd5+ {[%clk 0:01:21]}  Be6 {[%clk 0:01:52]} 31. hxg3 {[%clk 0:01:19]}  Rh8 {[%clk 0:01:52]} 32. dxc6 {[%clk 0:01:13]} 1-0


[Site "https://www.chess.com"]

[Event "Titled Tuesday Blitz September 28 2021"]
[White "Saravana, Krishnan P."]
[Black "Kamsky, Gata"]
[WhiteFideId "5018382"]
[BlackFideId "2000024"]
[WhiteElo "2245"]
[BlackElo "2603"]
[Result "0-1"]
[Round "08"]
[TimeControl "180+1"]
[Date "2021.09.28"]
[WhiteClock "0:00:39"]
[BlackClock "0:00:26"]

1. e4 {[%clk 0:03:00]}  c5 {[%clk 0:02:58]} 2. Nf3 {[%clk 0:03:01]}  e6 {[%clk 0:02:57]} 3. g3 {[%clk 0:03:00]}  d5 {[%clk 0:02:49]} 4. exd5 {[%clk 0:03:00]}  exd5 {[%clk 0:02:48]} 5. d4 {[%clk 0:03:00]}  c4 {[%clk 0:02:40]} 6. b3 {[%clk 0:02:58]}  cxb3 {[%clk 0:02:40]} 7. axb3 {[%clk 0:02:58]}  Bd6 {[%clk 0:02:40]} 8. Bg2 {[%clk 0:02:58]}  Ne7 {[%clk 0:02:40]} 9. O-O {[%clk 0:02:58]}  O-O {[%clk 0:02:39]} 10. Ne5 {[%clk 0:02:59]}  Nd7 {[%clk 0:02:26]} 11. Bb2 {[%clk 0:02:56]}  Nxe5 {[%clk 0:02:19]} 12. dxe5 {[%clk 0:02:54]}  Bc5 {[%clk 0:02:20]} 13. Nc3 {[%clk 0:02:53]}  Be6 {[%clk 0:02:18]} 14. Na4 {[%clk 0:02:39]}  b6 {[%clk 0:02:06]} 15. Kh1 {[%clk 0:02:38]}  Qc7 {[%clk 0:02:01]} 16. f4 {[%clk 0:02:37]}  Rfd8 {[%clk 0:01:59]} 17. g4 {[%clk 0:02:34]}  d4 {[%clk 0:01:57]} 18. Nxc5 {[%clk 0:02:25]}  bxc5 {[%clk 0:01:55]} 19. f5 {[%clk 0:02:24]}  Bd5 {[%clk 0:01:54]} 20. Qe2 {[%clk 0:02:13]}  Bxg2+ {[%clk 0:01:54]} 21. Qxg2 {[%clk 0:02:10]}  Qxe5 {[%clk 0:01:52]} 22. Rae1 {[%clk 0:02:09]}  Qd6 {[%clk 0:01:51]} 23. g5 {[%clk 0:02:09]}  Nd5 {[%clk 0:01:50]} 24. g6 {[%clk 0:02:05]}  Nf6 {[%clk 0:01:46]} 25. gxh7+ {[%clk 0:02:03]}  Kh8 {[%clk 0:01:41]} 26. Rf3 {[%clk 0:02:00]}  Re8 {[%clk 0:01:24]} 27. Rg1 {[%clk 0:01:59]}  Qf8 {[%clk 0:01:23]} 28. Rg3 {[%clk 0:01:54]}  Nh5 {[%clk 0:01:06]} 29. Rg5 {[%clk 0:01:44]}  Nf4 {[%clk 0:01:03]} 30. Qf3 {[%clk 0:01:43]}  Qd6 {[%clk 0:00:40]} 31. Rxg7 {[%clk 0:01:20]}  Qd5 {[%clk 0:00:40]} 32. Qxd5 {[%clk 0:01:13]}  Nxd5 {[%clk 0:00:40]} 33. Rxf7 {[%clk 0:01:13]}  Rf8 {[%clk 0:00:36]} 34. Rd7 {[%clk 0:01:10]}  Rxf5 {[%clk 0:00:32]} 35. b4 {[%clk 0:01:09]}  Nxb4 {[%clk 0:00:30]} 36. c3 {[%clk 0:00:56]}  Nd3 {[%clk 0:00:30]} 37. Ba1 {[%clk 0:00:52]}  Nf2+ {[%clk 0:00:29]} 38. Kg2 {[%clk 0:00:52]}  Raf8 {[%clk 0:00:29]} 39. cxd4 {[%clk 0:00:52]}  Rg5+ {[%clk 0:00:29]} 40. Kf1 {[%clk 0:00:49]}  Nh3+ {[%clk 0:00:29]} 41. Ke2 {[%clk 0:00:45]}  Rxg1 {[%clk 0:00:29]} 42. Bc3 {[%clk 0:00:39]}  Rf2+ {[%clk 0:00:26]} 43. Ke3 {[%clk 0:00:39]}  Rc1 {[%clk 0:00:26]} 0-1


[Site "https://www.chess.com"]

[Event "Titled Tuesday Blitz September 28 2021"]
[White "Savchenko, Boris"]
[Black "Svane, Rasmus"]
[WhiteFideId "4147332"]
[BlackFideId "4657101"]
[WhiteElo "2543"]
[BlackElo "2643"]
[Result "1-0"]
[Round "08"]
[TimeControl "180+1"]
[Date "2021.09.28"]
[WhiteClock "0:00:27"]
[BlackClock "0:00:03"]

1. e4 {[%clk 0:03:00]}  c6 {[%clk 0:02:58]} 2. Nf3 {[%clk 0:03:00]}  d5 {[%clk 0:02:59]} 3. Nc3 {[%clk 0:03:01]}  dxe4 {[%clk 0:02:59]} 4. Nxe4 {[%clk 0:03:01]}  Nf6 {[%clk 0:03:00]} 5. Ng3 {[%clk 0:02:58]}  g6 {[%clk 0:03:00]} 6. b3 {[%clk 0:02:57]}  Bg7 {[%clk 0:02:59]} 7. Bb2 {[%clk 0:02:58]}  c5 {[%clk 0:02:59]} 8. Bb5+ {[%clk 0:02:57]}  Bd7 {[%clk 0:02:59]} 9. a4 {[%clk 0:02:57]}  Nc6 {[%clk 0:02:45]} 10. O-O {[%clk 0:02:56]}  O-O {[%clk 0:02:45]} 11. Re1 {[%clk 0:02:56]}  a6 {[%clk 0:02:41]} 12. Bxc6 {[%clk 0:02:55]}  Bxc6 {[%clk 0:02:42]} 13. Ne5 {[%clk 0:02:56]}  Rc8 {[%clk 0:02:37]} 14. a5 {[%clk 0:02:55]}  Re8 {[%clk 0:02:32]} 15. d3 {[%clk 0:02:51]}  Bd5 {[%clk 0:02:23]} 16. Qc1 {[%clk 0:02:49]}  Nd7 {[%clk 0:02:09]} 17. Nxd7 {[%clk 0:02:44]}  Qxd7 {[%clk 0:02:10]} 18. Bxg7 {[%clk 0:02:43]}  Kxg7 {[%clk 0:02:11]} 19. Ra4 {[%clk 0:02:23]}  f6 {[%clk 0:02:06]} 20. h3 {[%clk 0:02:01]}  e5 {[%clk 0:02:04]} 21. Rg4 {[%clk 0:01:59]}  Qf7 {[%clk 0:01:41]} 22. Nf5+ {[%clk 0:01:55]}  Kh8 {[%clk 0:01:41]} 23. Nd6 {[%clk 0:01:53]}  Qd7 {[%clk 0:01:41]} 24. Nxc8 {[%clk 0:01:46]}  Qxc8 {[%clk 0:01:39]} 25. Qh6 {[%clk 0:01:37]}  Qf5 {[%clk 0:01:36]} 26. f4 {[%clk 0:01:32]}  Kg8 {[%clk 0:00:56]} 27. fxe5 {[%clk 0:01:24]}  Rxe5 {[%clk 0:00:56]} 28. Rxe5 {[%clk 0:01:00]}  Qxe5 {[%clk 0:00:54]} 29. Qd2 {[%clk 0:00:59]}  f5 {[%clk 0:00:53]} 30. d4 {[%clk 0:00:53]}  Qe6 {[%clk 0:00:34]} 31. Rf4 {[%clk 0:00:52]}  c4 {[%clk 0:00:34]} 32. bxc4 {[%clk 0:00:52]}  Bxc4 {[%clk 0:00:35]} 33. Rf3 {[%clk 0:00:37]}  Bd5 {[%clk 0:00:32]} 34. Re3 {[%clk 0:00:38]}  Be4 {[%clk 0:00:32]} 35. d5 {[%clk 0:00:38]}  Qxd5 {[%clk 0:00:31]} 36. Qxd5+ {[%clk 0:00:37]}  Bxd5 {[%clk 0:00:32]} 37. Re7 {[%clk 0:00:38]}  h6 {[%clk 0:00:26]} 38. h4 {[%clk 0:00:35]}  Kf8 {[%clk 0:00:20]} 39. Rc7 {[%clk 0:00:31]}  f4 {[%clk 0:00:15]} 40. Kf2 {[%clk 0:00:31]}  Bc6 {[%clk 0:00:14]} 41. g3 {[%clk 0:00:29]}  fxg3+ {[%clk 0:00:14]} 42. Kxg3 {[%clk 0:00:30]}  Ke8 {[%clk 0:00:04]} 43. Rh7 {[%clk 0:00:28]}  h5 {[%clk 0:00:05]} 44. Kf4 {[%clk 0:00:28]}  Kf8 {[%clk 0:00:03]} 45. Ke5 {[%clk 0:00:27]}  Ke8 {[%clk 0:00:03]} 46. Kf6 {[%clk 0:00:26]}  Be4 {[%clk 0:00:02]} 47. Re7+ {[%clk 0:00:26]}  Kd8 {[%clk 0:00:03]} 48. Rxe4 {[%clk 0:00:27]} 1-0


[Site "https://www.chess.com"]

[Event "Titled Tuesday Blitz September 28 2021"]
[White "Saya, Ethan"]
[Black "Martin Carmona, Gaston Manuel"]
[WhiteFideId "26095181"]
[BlackFideId "22284567"]
[WhiteElo "2217"]
[BlackElo "2161"]
[Result "0-1"]
[Round "08"]
[TimeControl "180+1"]
[Date "2021.09.28"]
[WhiteClock "0:00:03"]
[BlackClock "0:00:05"]

1. e4 {[%clk 0:03:00]}  e6 {[%clk 0:03:00]} 2. d4 {[%clk 0:02:57]}  d5 {[%clk 0:03:00]} 3. exd5 {[%clk 0:02:57]}  exd5 {[%clk 0:03:00]} 4. Nf3 {[%clk 0:02:58]}  Nf6 {[%clk 0:03:01]} 5. Bd3 {[%clk 0:02:58]}  Be7 {[%clk 0:03:01]} 6. Bf4 {[%clk 0:02:58]}  O-O {[%clk 0:03:01]} 7. h3 {[%clk 0:02:57]}  c6 {[%clk 0:03:02]} 8. O-O {[%clk 0:02:55]}  Nbd7 {[%clk 0:03:00]} 9. c3 {[%clk 0:02:54]}  Re8 {[%clk 0:03:00]} 10. Nbd2 {[%clk 0:02:54]}  Nf8 {[%clk 0:03:01]} 11. Qc2 {[%clk 0:02:53]}  Ng6 {[%clk 0:03:01]} 12. Bg3 {[%clk 0:02:53]}  Bd6 {[%clk 0:02:55]} 13. Bxd6 {[%clk 0:02:47]}  Qxd6 {[%clk 0:02:56]} 14. Rae1 {[%clk 0:02:47]}  Bd7 {[%clk 0:02:55]} 15. Bf5 {[%clk 0:02:28]}  Nf4 {[%clk 0:02:47]} 16. Ne5 {[%clk 0:02:25]}  g6 {[%clk 0:02:43]} 17. Bxd7 {[%clk 0:02:21]}  Nxd7 {[%clk 0:02:43]} 18. Ndf3 {[%clk 0:02:18]}  Nxe5 {[%clk 0:02:39]} 19. dxe5 {[%clk 0:02:07]}  Qd7 {[%clk 0:02:36]} 20. Qd2 {[%clk 0:02:06]}  Qf5 {[%clk 0:02:31]} 21. Kh1 {[%clk 0:01:49]}  Nxh3 {[%clk 0:02:21]} 22. Nd4 {[%clk 0:01:37]}  Qf4 {[%clk 0:02:20]} 23. Qe2 {[%clk 0:01:19]}  Ng5 {[%clk 0:02:15]} 24. g3 {[%clk 0:01:16]}  Qe4+ {[%clk 0:02:14]} 25. Qxe4 {[%clk 0:01:14]}  Nxe4 {[%clk 0:02:00]} 26. Kg2 {[%clk 0:01:14]}  Nc5 {[%clk 0:01:57]} 27. f4 {[%clk 0:01:11]}  Re7 {[%clk 0:01:53]} 28. Kf3 {[%clk 0:01:10]}  Rae8 {[%clk 0:01:53]} 29. b4 {[%clk 0:01:08]}  Ne4 {[%clk 0:01:51]} 30. Rxe4 {[%clk 0:01:03]}  dxe4+ {[%clk 0:01:52]} 31. Kxe4 {[%clk 0:01:03]}  f6 {[%clk 0:01:42]} 32. Nf3 {[%clk 0:00:48]}  Rd8 {[%clk 0:01:33]} 33. Rf2 {[%clk 0:00:43]}  fxe5 {[%clk 0:01:33]} 34. Nxe5 {[%clk 0:00:44]}  Rd1 {[%clk 0:01:30]} 35. g4 {[%clk 0:00:40]}  Kg7 {[%clk 0:01:28]} 36. g5 {[%clk 0:00:40]}  Re1+ {[%clk 0:01:28]} 37. Kd4 {[%clk 0:00:40]}  Rd1+ {[%clk 0:01:26]} 38. Ke4 {[%clk 0:00:40]}  Rc1 {[%clk 0:01:23]} 39. Rf3 {[%clk 0:00:37]}  Re1+ {[%clk 0:01:19]} 40. Kd4 {[%clk 0:00:37]}  Rd1+ {[%clk 0:01:19]} 41. Ke4 {[%clk 0:00:37]}  a5 {[%clk 0:01:10]} 42. bxa5 {[%clk 0:00:35]}  Rd5 {[%clk 0:01:10]} 43. c4 {[%clk 0:00:26]}  Rxa5 {[%clk 0:01:09]} 44. a3 {[%clk 0:00:27]}  Ra4 {[%clk 0:01:07]} 45. Kd4 {[%clk 0:00:26]}  Ra8 {[%clk 0:01:07]} 46. Rb3 {[%clk 0:00:25]}  Rd8+ {[%clk 0:01:06]} 47. Ke4 {[%clk 0:00:26]}  h5 {[%clk 0:01:03]} 48. gxh6+ {[%clk 0:00:22]}  Kxh6 {[%clk 0:01:04]} 49. a4 {[%clk 0:00:18]}  Rde8 {[%clk 0:01:03]} 50. a5 {[%clk 0:00:14]}  g5 {[%clk 0:01:03]} 51. Rh3+ {[%clk 0:00:15]}  Kg7 {[%clk 0:01:03]} 52. Rg3 {[%clk 0:00:15]}  Kf6 {[%clk 0:00:46]} 53. Rxg5 {[%clk 0:00:15]}  Rg7 {[%clk 0:00:43]} 54. Rf5+ {[%clk 0:00:14]}  Ke6 {[%clk 0:00:43]} 55. Rh5 {[%clk 0:00:14]}  Kd6 {[%clk 0:00:41]} 56. Rh6+ {[%clk 0:00:06]}  Kc5 {[%clk 0:00:39]} 57. Rh5 {[%clk 0:00:07]}  Kb4 {[%clk 0:00:38]} 58. a6 {[%clk 0:00:07]}  bxa6 {[%clk 0:00:38]} 59. Rh6 {[%clk 0:00:06]}  Rc7 {[%clk 0:00:31]} 60. Kd4 {[%clk 0:00:04]}  c5+ {[%clk 0:00:31]} 61. Kd5 {[%clk 0:00:04]}  Rd8+ {[%clk 0:00:29]} 62. Ke6 {[%clk 0:00:04]}  a5 {[%clk 0:00:26]} 63. Rh1 {[%clk 0:00:05]}  a4 {[%clk 0:00:23]} 64. Rb1+ {[%clk 0:00:05]}  Kc3 {[%clk 0:00:23]} 65. Rb5 {[%clk 0:00:04]}  a3 {[%clk 0:00:21]} 66. f5 {[%clk 0:00:04]}  a2 {[%clk 0:00:21]} 67. Ra5 {[%clk 0:00:05]}  Kb2 {[%clk 0:00:21]} 68. Rb5+ {[%clk 0:00:06]}  Kc2 {[%clk 0:00:19]} 69. Ra5 {[%clk 0:00:05]}  Kb3 {[%clk 0:00:13]} 70. f6 {[%clk 0:00:05]}  Re8+ {[%clk 0:00:13]} 71. Kd6 {[%clk 0:00:05]}  Rcc8 {[%clk 0:00:11]} 72. f7 {[%clk 0:00:05]}  Rf8 {[%clk 0:00:12]} 73. Ke7 {[%clk 0:00:04]}  Ra8 {[%clk 0:00:11]} 74. Rb5+ {[%clk 0:00:03]}  Kc3 {[%clk 0:00:10]} 75. Nd7 {[%clk 0:00:02]}  a1=Q {[%clk 0:00:10]} 76. Nxf8 {[%clk 0:00:02]}  Qe1+ {[%clk 0:00:09]} 77. Ne6 {[%clk 0:00:03]}  Qe5 {[%clk 0:00:07]} 78. Rxc5 {[%clk 0:00:02]}  Ra7+ {[%clk 0:00:05]} 79. Ke8 {[%clk 0:00:02]}  Qxe6+ {[%clk 0:00:05]} 80. Kf8 {[%clk 0:00:03]}  Qxf7# {[%clk 0:00:05]} 0-1


[Site "https://www.chess.com"]

[Event "Titled Tuesday Blitz September 28 2021"]
[White "Seemann, Jakub"]
[Black "Kovalchuk94"]
[WhiteFideId "21874697"]
[WhiteElo "1849"]
[BlackElo "2679"]
[Result "0-1"]
[Round "08"]
[TimeControl "180+1"]
[Date "2021.09.28"]
[WhiteClock "0:00:03"]
[BlackClock "0:00:15"]

1. Nf3 {[%clk 0:03:00]}  d5 {[%clk 0:02:59]} 2. c4 {[%clk 0:02:59]}  e6 {[%clk 0:02:58]} 3. g3 {[%clk 0:02:54]}  Nf6 {[%clk 0:02:58]} 4. Bg2 {[%clk 0:02:54]}  Be7 {[%clk 0:02:58]} 5. O-O {[%clk 0:02:53]}  O-O {[%clk 0:02:58]} 6. d4 {[%clk 0:02:53]}  dxc4 {[%clk 0:02:58]} 7. Qc2 {[%clk 0:02:53]}  a6 {[%clk 0:02:58]} 8. a4 {[%clk 0:02:53]}  Bd7 {[%clk 0:02:58]} 9. Qxc4 {[%clk 0:02:53]}  Bc6 {[%clk 0:02:58]} 10. Bg5 {[%clk 0:02:53]}  Nbd7 {[%clk 0:02:58]} 11. Nc3 {[%clk 0:02:53]}  h6 {[%clk 0:02:58]} 12. Bxf6 {[%clk 0:02:52]}  Nxf6 {[%clk 0:02:59]} 13. e3 {[%clk 0:02:52]}  a5 {[%clk 0:02:57]} 14. Ne5 {[%clk 0:02:51]}  Bxg2 {[%clk 0:02:56]} 15. Kxg2 {[%clk 0:02:52]}  c6 {[%clk 0:02:56]} 16. Rac1 {[%clk 0:02:44]}  Qb6 {[%clk 0:02:56]} 17. b3 {[%clk 0:02:43]}  Qa6 {[%clk 0:02:49]} 18. Rfd1 {[%clk 0:02:41]}  Rfd8 {[%clk 0:02:49]} 19. Kf3 {[%clk 0:02:29]}  Bb4 {[%clk 0:02:42]} 20. Ne4 {[%clk 0:02:28]}  Nxe4 {[%clk 0:02:38]} 21. Kxe4 {[%clk 0:02:27]}  Qb6 {[%clk 0:02:27]} 22. f4 {[%clk 0:02:25]}  Rd5 {[%clk 0:02:24]} 23. Nd3 {[%clk 0:02:10]}  Rad8 {[%clk 0:02:07]} 24. Kf3 {[%clk 0:02:01]}  h5 {[%clk 0:01:39]} 25. h3 {[%clk 0:01:59]}  g6 {[%clk 0:01:34]} 26. g4 {[%clk 0:01:58]}  Ba3 {[%clk 0:01:26]} 27. Rc2 {[%clk 0:01:54]}  Bf8 {[%clk 0:01:22]} 28. Rg2 {[%clk 0:01:51]}  c5 {[%clk 0:01:18]} 29. dxc5 {[%clk 0:01:35]}  Qc6 {[%clk 0:01:04]} 30. Kg3 {[%clk 0:00:35]}  Bxc5 {[%clk 0:00:40]} 31. Ne5 {[%clk 0:00:33]}  Qb6 {[%clk 0:00:25]} 32. Rxd5 {[%clk 0:00:25]}  exd5 {[%clk 0:00:24]} 33. Qd3 {[%clk 0:00:24]}  hxg4 {[%clk 0:00:22]} 34. hxg4 {[%clk 0:00:22]}  Bxe3 {[%clk 0:00:19]} 35. Nf3 {[%clk 0:00:13]}  d4 {[%clk 0:00:16]} 36. f5 {[%clk 0:00:09]}  Qd6+ {[%clk 0:00:15]} 37. Kh3 {[%clk 0:00:09]}  Qf4 {[%clk 0:00:15]} 38. Ne1 {[%clk 0:00:05]}  Kg7 {[%clk 0:00:15]} 39. f6+ {[%clk 0:00:03]}  Kxf6 {[%clk 0:00:14]} 40. g5+ {[%clk 0:00:03]}  Kg7 {[%clk 0:00:15]} 0-1


[Site "https://www.chess.com"]